bitfinex/quotes_BTCUSD_20220226
["timestamp","ask_amount","ask_price","bid_price","bid_amount"]
[1645893519555,0.09029208,39112.0,39110.0,0.278958]
[1645893520557,0.09029208,39111.0,39110.0,0.278958]
[1645893521056,0.09029208,39111.0,39110.0,0.1511]
[1645893523305,0.28132617,39111.0,39110.0,0.1511]
[1645893523905,0.09029208,39111.0,39110.0,0.1511]
[1645893524409,0.02544,39118.0,39110.0,0.1511]
[1645893524606,0.09029208,39113.0,39110.0,0.1511]
[1645893524807,0.02544,39118.0,39110.0,0.1511]
[1645893525007,0.29029208,39111.0,39110.0,0.1511]
[1645893525659,0.15,39112.0,39110.0,0.1511]
[1645893526055,0.29029208,39111.0,39110.0,0.1511]
[1645893526555,0.20979181,39115.0,39110.0,0.1511]
[1645893527057,0.29029208,39111.0,39110.0,0.1511]
[1645893527455,0.20979181,39115.0,39110.0,0.1511]
[1645893527856,0.29029208,39111.0,39110.0,0.1511]
[1645893528556,0.20979181,39115.0,39110.0,0.1511]
[1645893528758,0.29029208,39111.0,39110.0,0.1511]
[1645893529408,0.20979181,39115.0,39110.0,0.1541]
[1645893529607,0.20979181,39115.0,39111.0,0.063936]
[1645893530004,0.15,39112.0,39111.0,0.063936]
[1645893530604,0.15,39112.0,39111.0,0.06329091]
[1645893530805,0.09029208,39113.0,39111.0,0.06329091]
[1645893531005,0.09029208,39115.0,39111.0,0.11439091]
[1645893531205,0.01021,39120.0,39111.0,0.11439091]
[1645893531406,0.01021,39120.0,39114.0,0.063924]
[1645893531407,0.10050208,39120.0,39114.0,0.063924]
[1645893531605,0.10050208,39120.0,39116.0,0.063922]
[1645893531606,0.09029208,39120.0,39116.0,0.063922]
[1645893531805,0.09029208,39120.0,39117.0,0.0511]
[1645893532007,0.03827799,39116.0,39115.0,0.177844]
[1645893532605,0.12857007,39116.0,39115.0,0.24176544]
[1645893532807,0.03827799,39116.0,39115.0,0.24176544]
[1645893533011,0.03827799,39116.0,39115.0,0.1011]
[1645893533261,0.12857007,39116.0,39115.0,0.0511]
[1645893533457,0.12857007,39116.0,39115.0,0.0531]
[1645893534058,0.03827799,39116.0,39115.0,0.0531]
[1645893534261,0.12857007,39116.0,39115.0,0.0531]
[1645893534658,0.12857007,39116.0,39115.0,0.0511]
[1645893534659,0.03827799,39116.0,39115.0,0.0511]
[1645893535459,0.03827799,39116.0,39115.0,0.11702609]
[1645893535859,0.03827799,39116.0,39115.0,0.16702609]
[1645893536903,0.12857007,39116.0,39115.0,0.16502609]
[1645893537106,0.12857007,39116.0,39115.0,0.1011]
[1645893537306,0.12857007,39116.0,39115.0,0.0511]
[1645893537704,0.03827799,39116.0,39115.0,0.0511]
[1645893538307,0.03327799,39116.0,39115.0,0.0511]
[1645893539508,0.03327799,39116.0,39115.0,0.0531]
[1645893540310,0.03327799,39116.0,39115.0,0.11702584]
[1645893540754,0.03327799,39116.0,39115.0,0.16502584]
[1645893541654,0.03327799,39116.0,39115.0,0.1011]
[1645893542458,0.03327799,39116.0,39115.0,0.16502445]
[1645893543456,0.03327799,39116.0,39115.0,0.16702445]
[1645893544055,0.03327799,39116.0,39115.0,0.16656875]
[1645893544715,0.03327799,39116.0,39115.0,0.55214077]
[1645893544920,0.03327799,39116.0,39115.0,1.66580243]
[1645893545120,0.03327799,39116.0,39115.0,1.28827742]
[1645893545320,0.57633254,39122.0,39117.0,0.063907]
[1645893545617,0.57600456,39122.0,39118.0,0.81700962]
[1645893545817,0.57600456,39122.0,39121.0,0.0999]
[1645893546018,0.57600456,39122.0,39121.0,0.0511]
[1645893546019,0.57633254,39122.0,39121.0,0.0511]
[1645893546621,0.57633254,39122.0,39121.0,0.6892]
[1645893546918,0.57600456,39122.0,39121.0,0.6892]
[1645893547119,0.57600456,39122.0,39121.0,1.07318092]
[1645893547720,0.57600456,39122.0,39121.0,1.57878641]
[1645893548158,0.57600456,39122.0,39121.0,1.12680664]
[1645893548360,0.57600456,39122.0,39121.0,1.18708518]
[1645893548663,0.00014837,39123.0,39122.0,1.9768]
[1645893548864,2.95964029,39129.0,39124.0,0.02544]
[1645893549058,2.95964029,39129.0,39128.0,1.4149]
[1645893549257,1.42650091,39129.0,39128.0,1.66903]
[1645893549457,1.42650091,39129.0,39128.0,2.07353662]
[1645893549658,1.42650091,39129.0,39128.0,1.66903]
[1645893549855,0.65991091,39129.0,39128.0,1.66903]
[1645893550056,0.65991091,39129.0,39128.0,1.860683]
[1645893550260,0.27659591,39129.0,39128.0,2.26532769]
[1645893550462,0.27659591,39129.0,39128.0,1.860683]
[1645893550663,0.27659591,39129.0,39128.0,2.360683]
[1645893551664,0.04,39135.0,39130.0,0.7768]
[1645893551929,0.04,39135.0,39134.0,0.7019866]
[1645893552123,0.04,39135.0,39134.0,1.28543486]
[1645893552325,0.04,39135.0,39134.0,0.9808606]
[1645893553425,0.04,39135.0,39134.0,0.9878606]
[1645893553827,0.04,39135.0,39134.0,2.1699761]
[1645893554026,0.04,39135.0,39134.0,1.3931761]
[1645893554428,0.04,39135.0,39134.0,0.9878606]
[1645893554626,0.04,39135.0,39134.0,0.9808606]
[1645893555427,0.04,39135.0,39134.0,0.9868606]
[1645893555860,0.04,39135.0,39134.0,1.38910217]
[1645893556655,0.04,39135.0,39134.0,1.38310217]
[1645893557458,0.00037172,39136.0,39135.0,1.391629]
[1645893557655,0.01,39139.0,39135.0,2.53452198]
[1645893557855,0.01,39139.0,39136.0,0.701977]
[1645893558056,0.01,39139.0,39138.0,0.063877]
[1645893558258,0.01,39139.0,39138.0,0.114977]
[1645893558657,0.01,39139.0,39138.0,0.51866998]
[1645893558857,0.01,39139.0,39138.0,1.15676998]
[1645893559413,0.0003717,39140.0,39139.0,1.2]
[1645893559610,0.0003717,39140.0,39139.0,2.42478298]
[1645893559912,0.4298,39151.0,39140.0,1.2]
[1645893560111,0.4298,39151.0,39147.0,0.6381]
[1645893560315,0.118,39152.0,39148.0,0.0511]
[1645893560512,0.09029208,39155.0,39148.0,0.0511]
[1645893560710,0.11573208,39155.0,39148.0,0.11496644]
[1645893560920,0.62999446,39149.0,39148.0,0.0511]
[1645893561510,0.62999446,39149.0,39148.0,0.0561]
[1645893561713,0.02544,39155.0,39148.0,0.0561]
[1645893561913,0.35,39154.0,39148.0,0.6942]
[1645893562112,0.35,39154.0,39149.0,0.0511]
[1645893562310,0.08529208,39152.0,39149.0,0.0511]
[1645893562512,0.08529208,39152.0,39149.0,0.1011]
[1645893562713,0.22309089,39151.0,39149.0,0.0511]
[1645893562918,0.23529208,39150.0,39149.0,0.0511]
[1645893563376,0.08529208,39150.0,39149.0,0.0511]
[1645893565176,0.30838297,39151.0,39149.0,0.0511]
[1645893565375,0.30873079,39151.0,39149.0,0.0511]
[1645893565775,0.35,39150.0,39149.0,0.0511]
[1645893567107,0.145,39150.0,39149.0,0.0511]
[1645893567308,0.30838297,39151.0,39149.0,0.0511]
[1645893567509,0.30873079,39151.0,39149.0,0.0511]
[1645893567709,0.2,39150.0,39149.0,0.0511]
[1645893567912,0.345,39150.0,39149.0,0.0511]
[1645893568913,0.30873079,39151.0,39149.0,0.0511]
[1645893569514,0.30873079,39151.0,39149.0,0.0551]
[1645893569715,0.30838297,39151.0,39149.0,0.0551]
[1645893570861,0.30838297,39151.0,39149.0,0.0511]
[1645893571460,0.45338297,39151.0,39149.0,0.0551]
[1645893572862,0.45338297,39151.0,39149.0,0.0511]
[1645893573261,0.85874907,39151.0,39149.0,0.05102564]
[1645893573461,0.30838297,39151.0,39149.0,0.05102564]
[1645893577109,0.45338297,39151.0,39149.0,0.05102564]
[1645893577511,0.30838297,39151.0,39149.0,0.05102564]
[1645893578958,0.30838297,39151.0,39147.0,0.1]
[1645893579161,0.30838297,39151.0,39147.0,0.05]
[1645893579358,0.22309089,39151.0,39145.0,0.0511]
[1645893579562,0.6288063,39151.0,39145.0,0.1011]
[1645893579759,0.6288063,39151.0,39149.0,0.004]
[1645893579961,0.43029208,39150.0,39149.0,0.004]
[1645893580160,0.2234402,39151.0,39149.0,0.004]
[1645893580361,0.43029208,39150.0,39149.0,0.004]
[1645893580961,0.43029208,39150.0,39143.0,0.127751]
[1645893581162,0.2,39147.0,39145.0,0.0511]
[1645893581362,0.08529208,39146.0,39145.0,0.0511]
[1645893582607,0.20034933,39147.0,39145.0,0.0511]
[1645893582803,0.08529208,39146.0,39145.0,0.0511]
[1645893583404,0.2,39147.0,39145.0,0.0511]
[1645893583806,0.08529208,39146.0,39145.0,0.0511]
[1645893585007,0.08529208,39146.0,39144.0,0.063881]
[1645893586470,0.00034933,39147.0,39144.0,0.063881]
[1645893586672,0.22309089,39151.0,39144.0,0.063881]
[1645893586870,0.00034933,39147.0,39144.0,0.063881]
[1645893587670,0.00034933,39147.0,39144.0,0.114981]
[1645893587870,0.30838297,39151.0,39144.0,0.114981]
[1645893588071,0.00034933,39147.0,39144.0,0.166981]
[1645893588678,0.00034933,39147.0,39145.0,0.191616]
[1645893588973,0.1241,39153.0,39147.0,0.057477]
[1645893589171,0.1241,39153.0,39148.0,0.0511]
[1645893589409,0.08529208,39153.0,39148.0,0.0511]
[1645893589610,0.08529208,39153.0,39148.0,0.11496206]
[1645893589907,0.08529208,39153.0,39148.0,0.29568706]
[1645893590107,0.08529208,39153.0,39149.0,0.063863]
[1645893590308,0.08529208,39153.0,39150.0,0.0511]
[1645893590509,0.00016907,39152.0,39150.0,0.0511]
[1645893590708,0.00016907,39152.0,39150.0,0.1011]
[1645893591509,0.08529208,39156.0,39150.0,0.1011]
[1645893591712,0.00037186,39153.0,39150.0,0.1011]
[1645893591909,0.00037186,39153.0,39150.0,0.1031]
[1645893592115,0.35865968,39148.0,39146.0,0.30655082]
[1645893592310,0.35865968,39148.0,39147.0,0.0511]
[1645893592512,0.44395176,39148.0,39147.0,0.0511]
[1645893592714,0.58895176,39148.0,39147.0,0.0511]
[1645893593567,0.44395176,39148.0,39147.0,0.0511]
[1645893595668,0.35865968,39148.0,39147.0,0.0511]
[1645893596067,0.44395176,39148.0,39147.0,0.0531]
[1645893597317,0.44395176,39148.0,39147.0,0.0511]
[1645893598111,0.44395176,39148.0,39145.0,0.1]
[1645893598311,0.30522321,39146.0,39145.0,0.05]
[1645893598812,0.30522321,39146.0,39143.0,0.05]
[1645893599014,0.21993113,39146.0,39144.0,0.0511]
[1645893599210,0.30522321,39146.0,39144.0,0.0511]
[1645893602565,0.00037189,39147.0,39145.0,0.063878]
[1645893603363,0.35865968,39148.0,39146.0,0.0511]
[1645893603562,0.35865968,39148.0,39147.0,0.1916027]
[1645893603763,0.35903157,39148.0,39147.0,0.3427027]
[1645893604609,0.35865968,39148.0,39147.0,0.3427027]
[1645893605809,0.3553892,39148.0,39147.0,0.3427027]
[1645893606011,0.44068128,39148.0,39147.0,0.3427027]
[1645893606214,0.3553892,39148.0,39147.0,0.3427027]
[1645893607818,0.27648349,39148.0,39147.0,0.3427027]
[1645893608013,0.27648349,39148.0,39147.0,0.3447027]
[1645893609357,0.27648349,39148.0,39147.0,0.3427027]
[1645893609959,0.27648349,39148.0,39147.0,0.3457027]
[1645893611162,0.27648349,39148.0,39147.0,1.30708275]
[1645893611365,0.00037188,39149.0,39148.0,1.2]
[1645893611564,0.00037188,39149.0,39148.0,2.24747605]
[1645893611764,0.39627786,39160.0,39148.0,2.76615307]
[1645893612020,0.08529208,39163.0,39155.0,0.6381]
[1645893612224,0.08529208,39163.0,39157.0,0.063847]
[1645893612418,0.64411703,39167.0,39158.0,0.0511]
[1645893612618,0.015,39167.0,39159.0,0.765783]
[1645893612818,0.015,39167.0,39160.0,0.1011]
[1645893613024,0.015,39167.0,39161.0,0.39627786]
[1645893613217,0.015,39167.0,39165.0,0.6381]
[1645893613420,0.015,39167.0,39166.0,0.44814894]
[1645893613818,0.015,39167.0,39166.0,0.6892]
[1645893614019,0.015,39167.0,39166.0,1.08924894]
[1645893614218,0.015,39167.0,39166.0,0.75603]
[1645893614418,0.015,39167.0,39166.0,0.6922]
[1645893615222,0.01,39167.0,39166.0,0.6892]
[1645893616163,0.01,39167.0,39166.0,0.6912]
[1645893616669,0.23029208,39167.0,39166.0,0.6912]
[1645893617468,0.23029208,39167.0,39166.0,0.6892]
[1645893617964,0.23029208,39167.0,39166.0,0.0511]
[1645893618362,0.08529208,39167.0,39166.0,0.0511]
[1645893619817,0.23029208,39167.0,39166.0,0.0511]
[1645893621819,0.23029208,39167.0,39162.0,0.1]
[1645893621820,0.02544,39166.0,39162.0,0.1]
[1645893622026,0.02544,39166.0,39162.0,0.05]
[1645893622320,0.08000634,39156.0,39153.0,0.39704894]
[1645893622519,0.08000634,39156.0,39153.0,0.0511]
[1645893622720,0.07500634,39156.0,39153.0,0.0511]
[1645893622925,0.07537818,39156.0,39153.0,0.0511]
[1645893623474,0.08529208,39154.0,39153.0,0.0511]
[1645893623662,0.43029208,39154.0,39146.0,0.21542793]
[1645893623861,0.345,39154.0,39147.0,0.76628]
[1645893624159,0.345,39154.0,39148.0,0.002]
[1645893624360,0.08529208,39149.0,39148.0,0.002]
[1645893625360,0.08529208,39149.0,39147.0,0.76628]
[1645893625559,0.00037188,39150.0,39147.0,0.86628]
[1645893625762,0.08529208,39149.0,39147.0,0.86628]
[1645893628015,0.43029208,39149.0,39147.0,0.76628]
[1645893628215,0.43029208,39149.0,39142.0,0.003]
[1645893628216,0.12544,39148.0,39142.0,0.003]
[1645893628414,0.08529208,39143.0,39142.0,0.003]
[1645893629416,0.08529208,39143.0,39137.0,0.31542793]
[1645893630216,0.00036564,39146.0,39137.0,0.31542793]
[1645893631166,0.08529208,39138.0,39137.0,0.31542793]
[1645893631363,0.08529208,39138.0,39137.0,0.37931793]
[1645893631762,0.06669108,39141.0,39137.0,0.37931793]
[1645893631962,0.06669108,39141.0,39137.0,0.16389]
[1645893632161,0.06669108,39141.0,39137.0,0.37931793]
[1645893632361,0.22013757,39147.0,39137.0,0.37931793]
[1645893632561,0.00036564,39146.0,39137.0,0.37431793]
[1645893632764,0.00036564,39146.0,39137.0,0.37631793]
[1645893632961,0.00036564,39146.0,39137.0,0.43381493]
[1645893633162,0.00036564,39146.0,39137.0,0.43581493]
[1645893633564,0.42013757,39147.0,39137.0,0.37831793]
[1645893633866,0.00034875,39146.0,39137.0,0.37831793]
[1645893634062,0.00034875,39146.0,39138.0,0.21542793]
[1645893634515,0.06703983,39146.0,39138.0,0.21542793]
[1645893634714,0.06669108,39146.0,39138.0,0.21542793]
[1645893634916,0.06703983,39146.0,39138.0,0.21542793]
[1645893635116,0.2,39145.0,39138.0,0.21542793]
[1645893635318,0.2,39145.0,39137.0,0.37431793]
[1645893635717,0.06669108,39141.0,39137.0,0.37431793]
[1645893635919,0.2,39143.0,39137.0,0.37431793]
[1645893637019,0.2,39143.0,39137.0,0.16389]
[1645893637217,0.00034961,39146.0,39137.0,0.227776]
[1645893637616,0.00034961,39146.0,39138.0,0.0511]
[1645893638267,0.22013757,39147.0,39138.0,0.0511]
[1645893638268,0.44557757,39147.0,39138.0,0.0511]
[1645893638465,0.26669108,39145.0,39138.0,0.0511]
[1645893638665,0.00034962,39146.0,39138.0,0.0511]
[1645893638864,0.00034962,39146.0,39138.0,0.0551]
[1645893639469,0.42013757,39147.0,39138.0,0.0551]
[1645893639768,0.00034962,39146.0,39138.0,0.0551]
[1645893640163,0.00034962,39146.0,39138.0,0.0511]
[1645893640665,0.22013757,39147.0,39138.0,0.0511]
[1645893640864,0.20034954,39146.0,39138.0,0.0551]
[1645893641064,0.2,39145.0,39138.0,0.0551]
[1645893641667,0.00034954,39146.0,39138.0,0.0551]
[1645893641905,0.24557757,39147.0,39138.0,0.0551]
[1645893642106,0.00034954,39146.0,39138.0,0.0461]
[1645893642906,0.00034954,39146.0,39138.0,0.0501]
[1645893643107,0.22013757,39147.0,39138.0,0.0501]
[1645893643308,0.2,39145.0,39138.0,0.0501]
[1645893643708,0.06669108,39142.0,39138.0,0.0501]
[1645893644108,0.06669108,39142.0,39138.0,0.0461]
[1645893644510,0.22013757,39147.0,39138.0,0.0461]
[1645893644710,0.00034954,39146.0,39138.0,0.0461]
[1645893644909,0.00034954,39146.0,39138.0,0.0501]
[1645893645511,0.42013757,39147.0,39138.0,0.0501]
[1645893645761,0.00034955,39146.0,39138.0,0.0501]
[1645893646160,0.00034955,39146.0,39138.0,0.0461]
[1645893646564,0.22013757,39147.0,39138.0,0.0461]
[1645893646965,0.00034955,39146.0,39138.0,0.44045866]
[1645893647263,0.00034955,39146.0,39138.0,0.0501]
[1645893647960,0.22013757,39147.0,39138.0,0.0501]
[1645893648161,0.22013757,39147.0,39138.0,0.0461]
[1645893648365,0.06669108,39148.0,39138.0,0.49395366]
[1645893648561,0.06669108,39148.0,39141.0,0.063883]
[1645893648762,0.06669108,39148.0,39141.0,0.114983]
[1645893648962,0.06669108,39148.0,39141.0,0.0511]
[1645893649163,0.19315063,39146.0,39141.0,0.1011]
[1645893649409,0.19315063,39146.0,39141.0,0.0511]
[1645893649714,0.17330658,39147.0,39139.0,0.05]
[1645893649908,0.17330658,39147.0,39138.0,0.005]
[1645893650112,0.25984171,39142.0,39136.0,0.278872]
[1645893650311,0.06669108,39141.0,39136.0,0.278872]
[1645893650713,0.135,39146.0,39136.0,0.278872]
[1645893651513,0.06669108,39140.0,39136.0,0.278872]
[1645893652011,0.19315063,39141.0,39136.0,0.278872]
[1645893652216,0.02544,39145.0,39136.0,0.278872]
[1645893652412,0.25984171,39142.0,39136.0,0.278872]
[1645893652613,0.06669108,39141.0,39136.0,0.278872]
[1645893652917,0.06669108,39141.0,39136.0,0.1511]
[1645893653165,0.06669108,39141.0,39136.0,0.1]
[1645893653560,0.19315063,39139.0,39136.0,0.05]
[1645893653962,0.19315063,39139.0,39131.0,0.005]
[1645893654160,0.2131132,39135.0,39131.0,0.00034963]
[1645893654361,0.0673057,39135.0,39131.0,0.00034963]
[1645893654562,0.06669108,39137.0,39131.0,0.00034963]
[1645893655062,0.06669108,39137.0,39131.0,0.005]
[1645893655260,0.06669108,39137.0,39131.0,0.00534964]
[1645893655963,0.06669108,39137.0,39132.0,0.063899]
[1645893656908,0.06669108,39137.0,39132.0,0.068899]
[1645893658716,0.06669108,39137.0,39131.0,0.05]
[1645893658914,0.06669108,39137.0,39132.0,0.005]
[1645893659112,0.19315063,39138.0,39132.0,0.005]
[1645893659513,0.24274512,39139.0,39132.0,0.005]
[1645893659514,0.17605404,39139.0,39132.0,0.005]
[1645893659713,0.17605404,39139.0,39133.0,0.063898]
[1645893660113,0.19315063,39141.0,39133.0,0.063898]
[1645893660760,0.19315063,39141.0,39133.0,0.114998]
[1645893660961,0.19315063,39141.0,39134.0,0.3879269]
[1645893661161,0.19315063,39141.0,39135.0,0.057498]
[1645893661360,0.19315063,39141.0,39136.0,0.127774]
[1645893661561,0.19315063,39141.0,39136.0,0.228874]
[1645893661759,0.19315063,39141.0,39136.0,0.278874]
[1645893662259,0.3146,39144.0,39138.0,0.063886]
[1645893662463,0.35581066,39146.0,39138.0,0.164986]
[1645893662662,0.35581066,39146.0,39138.0,0.214986]
[1645893663268,0.25984171,39142.0,39138.0,0.214986]
[1645893664613,0.25984171,39142.0,39138.0,0.1511]
[1645893664912,0.25984171,39142.0,39138.0,0.05]
[1645893665117,0.25984171,39142.0,39139.0,0.05]
[1645893665314,0.19478895,39139.0,39137.0,0.05]
[1645893665712,0.19478895,39139.0,39136.0,0.31542793]
[1645893667014,0.19478895,39139.0,39137.0,0.21542793]
[1645893667214,0.135,39146.0,39138.0,0.21542793]
[1645893667513,0.25984171,39145.0,39138.0,0.21542793]
[1645893667821,0.135,39146.0,39138.0,0.05]
[1645893668019,0.135,39146.0,39139.0,0.05]
[1645893668265,0.2391618,39143.0,39139.0,0.26542793]
[1645893668464,0.2391618,39143.0,39138.0,0.32931793]
[1645893668665,0.2391618,39143.0,39138.0,0.26542793]
[1645893668864,0.2391618,39143.0,39138.0,0.31542793]
[1645893669468,0.25984171,39142.0,39139.0,0.21542793]
[1645893669766,0.25984171,39142.0,39139.0,0.26542793]
[1645893670371,0.06669108,39140.0,39139.0,0.05]
[1645893670564,0.06669108,39140.0,39138.0,0.26542793]
[1645893671265,0.19315063,39139.0,39138.0,0.26542793]
[1645893671907,0.25984171,39139.0,39138.0,0.26542793]
[1645893672706,0.2391618,39143.0,39138.0,0.26542793]
[1645893672912,0.25984171,39139.0,39138.0,0.21878455]
[1645893673306,0.25984171,39139.0,39138.0,0.26878455]
[1645893673908,0.25984171,39139.0,39138.0,0.053]
[1645893674308,0.25984171,39139.0,39138.0,0.003]
[1645893675008,0.06669108,39139.0,39136.0,0.36931699]
[1645893675208,0.25984171,39139.0,39136.0,0.36931699]
[1645893675665,0.25984171,39142.0,39136.0,0.36931699]
[1645893675864,0.25984171,39142.0,39139.0,0.2157808]
[1645893676669,0.19315063,39142.0,39139.0,0.2157808]
[1645893676863,0.06669108,39140.0,39139.0,0.2157808]
[1645893677066,0.06669108,39140.0,39139.0,0.2187808]
[1645893677264,0.06669108,39140.0,39139.0,0.21860317]
[1645893678168,0.06669108,39140.0,39139.0,0.21560317]
[1645893678968,0.06669108,39140.0,39139.0,0.21760317]
[1645893680217,0.06669108,39140.0,39139.0,0.21560317]
[1645893680917,0.2382454,39143.0,39139.0,0.21560317]
[1645893681317,0.43139603,39143.0,39139.0,0.21560317]
[1645893681517,0.2382454,39143.0,39139.0,0.21560317]
[1645893681717,0.06669108,39140.0,39139.0,0.21560317]
[1645893682717,0.19315063,39141.0,39139.0,0.21560317]
[1645893682922,0.21859063,39145.0,39139.0,0.21860317]
[1645893683165,0.06669108,39144.0,39139.0,0.21860317]
[1645893683761,0.19315063,39142.0,39139.0,0.21860317]
[1645893684159,0.19315063,39142.0,39139.0,0.21560317]
[1645893684559,0.44692818,39138.0,39137.0,0.26931699]
[1645893688258,0.44692818,39138.0,39137.0,0.27231699]
[1645893689058,0.44692818,39138.0,39137.0,0.26931699]
[1645893689857,0.44692818,39138.0,39137.0,0.003]
[1645893690258,0.44692818,39138.0,39137.0,0.32618039]
[1645893691267,0.44692818,39138.0,39137.0,0.32318039]
[1645893692063,0.44692818,39138.0,39137.0,0.32618039]
[1645893692264,0.44692818,39138.0,39137.0,0.37728039]
[1645893692964,0.44692818,39138.0,39137.0,0.76520729]
[1645893693167,0.44692818,39138.0,39137.0,0.37428039]
[1645893693964,0.44692818,39138.0,39137.0,0.37628039]
[1645893695225,0.44692818,39138.0,39137.0,0.37428039]
[1645893696223,0.44692818,39138.0,39137.0,0.0511]
[1645893696824,0.44692818,39138.0,39137.0,0.37428039]
[1645893698768,0.44692818,39138.0,39137.0,0.37728039]
[1645893699968,0.44692818,39138.0,39137.0,0.37381979]
[1645893700165,0.44192818,39138.0,39137.0,0.37381979]
[1645893701471,0.44192818,39138.0,39137.0,0.32318039]
[1645893704718,0.44192818,39138.0,39136.0,0.66870679]
[1645893704917,0.44192818,39138.0,39137.0,0.002]
[1645893706368,0.44192818,39138.0,39136.0,0.66870679]
[1645893706967,0.44192818,39138.0,39136.0,0.67270679]
[1645893707968,0.44192818,39138.0,39136.0,0.60881779]
[1645893708167,0.44192818,39138.0,39136.0,0.60481779]
[1645893709168,0.44192818,39138.0,39136.0,0.66870779]
[1645893709413,0.44192818,39138.0,39137.0,0.0511]
[1645893710012,0.44192818,39138.0,39137.0,0.6023816]
[1645893710414,0.44192818,39138.0,39137.0,0.9903085]
[1645893711014,0.44192818,39138.0,39137.0,1.0571945]
[1645893711416,0.44192818,39138.0,39137.0,0.68015071]
[1645893711815,0.05870518,39138.0,39137.0,0.68015071]
[1645893712117,0.05870518,39138.0,39137.0,1.51972521]
[1645893712315,0.0003495,39148.0,39138.0,1.22544]
[1645893712613,0.0003495,39148.0,39147.0,0.063863]
[1645893712816,0.436,39155.0,39147.0,0.214963]
[1645893712817,0.1443,39155.0,39147.0,0.214963]
[1645893713020,0.1443,39155.0,39151.0,0.27960102]
[1645893713279,0.01,39155.0,39152.0,0.26683925]
[1645893713476,0.01,39155.0,39152.0,0.32431525]
[1645893713672,0.01,39155.0,39152.0,0.108576]
[1645893713878,0.01,39155.0,39152.0,0.82663339]
[1645893714072,0.01,39155.0,39154.0,0.21573925]
[1645893714275,0.0103495,39155.0,39154.0,0.75529539]
[1645893714474,0.00374993,39155.0,39154.0,0.75529539]
[1645893714875,0.00374993,39155.0,39154.0,0.53955614]
[1645893715272,0.00340043,39155.0,39154.0,0.1511]
[1645893716675,0.0003495,39156.0,39154.0,0.1511]
[1645893717517,0.23991452,39159.0,39154.0,0.1511]
[1645893717719,0.23991452,39159.0,39155.0,0.063864]
[1645893718016,0.00034949,39157.0,39156.0,0.0511]
[1645893718518,0.00034949,39157.0,39156.0,0.1011]
[1645893718718,0.23991452,39159.0,39156.0,0.1011]
[1645893718918,0.23991452,39159.0,39156.0,0.1551]
[1645893719117,0.00034949,39158.0,39156.0,0.1551]
[1645893719922,0.23991452,39159.0,39156.0,0.1551]
[1645893720120,0.23991452,39159.0,39156.0,0.1511]
[1645893720320,0.240264,39159.0,39156.0,0.1511]
[1645893721173,0.23991452,39159.0,39156.0,0.1511]
[1645893721569,0.240264,39159.0,39156.0,0.1511]
[1645893722371,0.23991452,39159.0,39156.0,0.1511]
[1645893722576,0.240264,39159.0,39156.0,0.1511]
[1645893722969,0.240264,39159.0,39156.0,0.1541]
[1645893723572,0.23991452,39159.0,39156.0,0.0541]
[1645893723771,0.25984171,39157.0,39156.0,0.0541]
[1645893724171,0.25984171,39157.0,39156.0,0.0511]
[1645893724616,0.25984171,39157.0,39156.0,0.050999]
[1645893725225,0.25984171,39157.0,39156.0,0.05043216]
[1645893726420,0.00034949,39158.0,39156.0,0.05043216]
[1645893727019,0.00034949,39158.0,39152.0,0.1]
[1645893727219,0.23991452,39159.0,39152.0,0.05]
[1645893727419,0.240264,39159.0,39152.0,0.05]
[1645893727620,0.18022544,39153.0,39151.0,0.052]
[1645893727824,0.18022544,39153.0,39151.0,0.002]
[1645893728269,0.18022544,39153.0,39150.0,0.1511]
[1645893729068,0.00034951,39154.0,39150.0,0.1511]
[1645893729668,0.38845614,39162.0,39150.0,0.1511]
[1645893729871,0.00034951,39154.0,39150.0,0.1511]
[1645893730474,0.17857778,39153.0,39150.0,0.1511]
[1645893730871,0.17857778,39153.0,39150.0,0.05]
[1645893731071,0.17892729,39153.0,39151.0,0.05]
[1645893731272,0.17892729,39153.0,39150.0,0.003]
[1645893732132,0.17892729,39153.0,39145.0,0.21573925]
[1645893732133,0.06669108,39151.0,39145.0,0.21573925]
[1645893732330,0.06669108,39148.0,39142.0,0.34543925]
[1645893732531,0.06669108,39148.0,39142.0,0.21573925]
[1645893733033,0.06669108,39148.0,39141.0,0.21573925]
[1645893733034,0.1758316,39144.0,39141.0,0.21573925]
[1645893733229,0.02131876,39144.0,39141.0,0.21573925]
[1645893733429,0.02131876,39144.0,39140.0,0.21573925]
[1645893733828,0.01988619,39144.0,39140.0,0.21573925]
[1645893734230,0.01988619,39144.0,39140.0,0.31573925]
[1645893734830,0.01988619,39144.0,39141.0,0.21573925]
[1645893735331,0.01988619,39144.0,39140.0,0.003]
[1645893735332,0.01988619,39144.0,39140.0,0.21873925]
[1645893735967,0.08657727,39144.0,39140.0,0.21873925]
[1645893736164,0.08657727,39144.0,39140.0,0.26873925]
[1645893736365,0.02578952,39148.0,39140.0,0.26873925]
[1645893736366,0.00034952,39148.0,39140.0,0.26873925]
[1645893736566,0.25984171,39142.0,39140.0,0.26873925]
[1645893736765,0.25984171,39142.0,39141.0,0.21573925]
[1645893737568,0.19315063,39145.0,39141.0,0.27962525]
[1645893737768,0.25984171,39146.0,39141.0,0.27962525]
[1645893738968,0.25984171,39146.0,39141.0,0.21573925]
[1645893739618,0.59748366,39149.0,39141.0,0.27962525]
[1645893739920,0.00034953,39148.0,39141.0,0.27962525]
[1645893740317,0.19315063,39147.0,39142.0,0.21573925]
[1645893740724,0.00034953,39148.0,39142.0,0.39349525]
[1645893740918,0.00034953,39148.0,39142.0,0.39849525]
[1645893741122,0.00034953,39148.0,39144.0,0.063877]
[1645893741322,0.00034953,39148.0,39145.0,0.51629757]
[1645893741530,0.00340043,39154.0,39147.0,1.1]
[1645893741721,0.00340043,39154.0,39149.0,0.21552817]
[1645893741920,0.00340043,39154.0,39150.0,0.35184141]
[1645893742125,0.00340043,39154.0,39150.0,0.56736958]
[1645893742720,0.00340043,39154.0,39150.0,0.68231758]
[1645893742931,0.00340043,39154.0,39151.0,0.21552817]
[1645893743174,0.00340043,39154.0,39152.0,0.40221845]
[1645893743380,0.00340043,39154.0,39152.0,0.1011]
[1645893744272,0.00340043,39154.0,39152.0,0.16495804]
[1645893744674,0.20790854,39158.0,39152.0,0.53495804]
[1645893744974,0.20790854,39158.0,39154.0,0.063864]
[1645893745172,0.20790854,39158.0,39155.0,0.0511]